fUSD/lending_fUSD_20240109
["ID","MTS","AMOUNT","RATE_DAILY","PERIOD"]
[310947758,1704828642459,-4105.30415161,0.00037387,60]
[310947759,1704828642470,-212.32353727,0.00037387,2]
[310947760,1704828642479,-153.99504201,0.00037387,120]
[310947761,1704828642489,-446.36145622,0.00037387,120]
[310947762,1704828642499,-215.50609417,0.00037387,30]
[310947763,1704828642508,-50131.49095591,0.00037387,120]
[310947764,1704828642518,-152.43963118,0.00037387,120]
[310947765,1704828642527,-316.43577333,0.00037387,30]
[310947766,1704828642538,-1401.18561515,0.00037387,2]
[310947767,1704828642547,-1937.236888,0.00037387,30]
[310947768,1704828642557,-304.856372,0.00037387,30]
[310947770,1704828642566,-1965.399855,0.00037387,30]
[310947772,1704828642575,-151.0,0.00037436,2]
[310947773,1704828642584,-157.49,0.000376,3]
[310947775,1704828642593,-157.49,0.000376,3]
[310947776,1704828642603,-155.45,0.00037627,2]
[310947777,1704828642612,-662.81488819,0.0003779,2]
[310947778,1704828642621,-208.0,0.000378,2]
[310947779,1704828642631,-157.74664031,0.000378,2]
[310947780,1704828642640,-335.7286114,0.00037883,8]
[310947781,1704828642652,-150.94,0.0003789,2]
[310947782,1704828642662,-150.94,0.0003789,2]
[310947783,1704828642671,-150.94,0.0003789,2]
[310947784,1704828642681,-150.94,0.0003789,2]
[310947785,1704828642689,-1004.4107,0.00037899,2]
[310947786,1704828642698,-3700.62,0.000379,2]
[310947787,1704828642707,-3700.62,0.000379,2]
[310947788,1704828642716,-600261.838422,0.000379,2]
[310947789,1704828642726,-100000.0,0.00038,2]
[310947790,1704828642734,-150.93,0.00038014,15]
[310947791,1704828642743,-430.56361497,0.00038028,11]
[310947792,1704828642753,-150.0,0.00038099,2]
[310947793,1704828642762,-186.0,0.00038255,2]
[310947794,1704828642771,-818.4,0.00038258,2]
[310947795,1704828642780,-157.63771416,0.00038279,7]
[310947796,1704828642789,-200.0,0.00038318,10]
[310947797,1704828642798,-800.0,0.00038318,10]
[310947798,1704828642807,-666.0,0.00038356,2]
[310947799,1704828642817,-4000.0,0.000384,2]
[310947800,1704828642827,-5472.98862693,0.00038576,12]
[310947801,1704828642838,-1433.60686928,0.00038649,12]
[310947802,1704828642847,-2109.19527478,0.00038649,12]
[310947803,1704828642857,-3377.57987163,0.00038649,12]
[310947804,1704828642866,-155.45,0.00038769,2]
[310947805,1704828642875,-407.65,0.00038903,2]
[310947806,1704828642884,-627.82,0.00038903,2]
[310947807,1704828642894,-407.65,0.00038903,2]
[310947808,1704828642908,-313.91,0.00038903,2]
[310947809,1704828642918,-914.82,0.00038903,2]
[310947810,1704828642927,-407.65,0.00038903,2]
[310947811,1704828642936,-313.91,0.00038903,2]
[310947812,1704828642945,-407.65,0.00038903,2]
[310947813,1704828642955,-313.07,0.00038903,2]
[310947814,1704828642964,-407.65,0.00038903,2]
[310947815,1704828642973,-397.31,0.00038903,2]
[310947816,1704828642983,-409.57,0.00038983,2]
[310947817,1704828642992,-938.82,0.00038983,2]
[310947818,1704828643001,-37080.17712901,0.00039,2]
[310947819,1704828643017,-478.613072,0.00039,2]
[310947820,1704828643102,-62441.20979899,0.00039,2]
[310947821,1704828643112,-408.83,0.00039,3]
[310947822,1704828643121,-408.83,0.00039,3]
[310947823,1704828643130,-408.83,0.00039,3]
[310947825,1704828643139,-408.83,0.00039,3]
[310947826,1704828643148,-408.83,0.00039,3]
[310947827,1704828643160,-408.83,0.00039,3]
[310947828,1704828643170,-408.83,0.00039,3]
[310947830,1704828643179,-408.83,0.00039,3]
[310947831,1704828643188,-408.83,0.00039,3]
[310947832,1704828643197,-408.83,0.00039,3]
[310947833,1704828643206,-408.83,0.00039,3]
[310947834,1704828643215,-408.83,0.00039,3]
[310947835,1704828643224,-408.83,0.00039,3]
[310947836,1704828643234,-408.83,0.00039,3]
[310947837,1704828643243,-408.83,0.00039,3]
[310947838,1704828643251,-408.83,0.00039,3]
[310947839,1704828643261,-408.83,0.00039,3]
[310947840,1704828643270,-408.83,0.00039,3]
[310947841,1704828643279,-408.83,0.00039,3]
[310947842,1704828643288,-408.83,0.00039,3]
[310947843,1704828643297,-55555.0,0.00039,3]
[310947844,1704828643307,-1506.58180926,0.00039,2]
[310947845,1704828643318,-2493.41819074,0.00039,2]
[310947846,1704828643328,-162.52449395,0.00039031,7]
[310947847,1704828643337,-157.63771416,0.00039032,7]
[310947849,1704828643346,-430.56361497,0.00039045,12]
[310947851,1704828643356,-7365.6,0.00039077,2]
[310947852,1704828643365,-205.0,0.00039092,23]
[310947853,1704828643374,-390.89,0.00039092,2]
[310947854,1704828643383,-150.0,0.00039099,2]
[310947855,1704828643393,-214.51,0.000391,7]
[310947856,1704828643403,-150.56,0.00039178,2]
[310947857,1704828643412,-1500.0,0.00039231,2]
[310947858,1704828643421,-150.0,0.00039245,2]
[310947859,1704828643430,-199.8,0.0003926,2]
[310947860,1704828643439,-150.0,0.00039281,2]
[310947861,1704828643448,-150.0,0.00039306,2]
[310947862,1704828643458,-500.0,0.00039343,2]
[310947863,1704828643467,-662.81488819,0.00039369,2]
[310947864,1704828643476,-150.0,0.0003939,2]
[310947865,1704828643485,-150.0,0.00039421,2]
[310947866,1704828643494,-335.7286114,0.0003948,9]
[310947867,1704828643503,-150.0,0.00039521,2]
[310947868,1704828643512,-150.0,0.00039551,2]
[310947869,1704828643521,-150.0,0.00039581,2]
[310947870,1704828643531,-157.63771416,0.00039589,7]
[310947871,1704828643540,-150.0,0.00039632,2]
[310947872,1704828643549,-150.0,0.00039633,2]
[310947873,1704828643558,-1079.70550939,0.00039663,2]
[310947874,1704828643567,-293.69,0.00039671,2]
[310947875,1704828643576,-293.69,0.00039671,2]
[310947876,1704828643585,-293.69,0.00039671,2]
[310947877,1704828643594,-293.69,0.00039671,2]
[310947878,1704828643603,-293.69,0.00039671,2]
[310947879,1704828643612,-292.71,0.00039671,2]
[310947880,1704828643622,-150.0,0.00039695,2]
[310947881,1704828643631,-4001.0,0.000397,2]
[310947882,1704828643641,-500.0,0.00039725,10]
[310947883,1704828643653,-293.69,0.00039725,2]
[310947884,1704828643663,-293.69,0.00039725,2]
[310947885,1704828643674,-293.69,0.00039725,2]
[310947894,1704828643932,-293.69,0.00039725,2]
[310947896,1704828643942,-293.69,0.00039725,2]
[310947898,1704828643951,-293.69,0.00039725,2]
[310947899,1704828643960,-293.69,0.00039725,2]
[310947900,1704828643969,-293.69,0.00039725,2]
[310947902,1704828643979,-293.69,0.00039725,2]
[310947904,1704828643989,-293.69,0.00039725,2]
[310947906,1704828643998,-293.69,0.00039725,2]
[310947908,1704828644008,-293.69,0.00039725,2]
[310947910,1704828644017,-293.69,0.00039725,2]
[310947911,1704828644027,-293.69,0.00039725,2]
[310947914,1704828644036,-293.69,0.00039725,2]
[310947916,1704828644049,-293.69,0.00039725,2]
[310947917,1704828644058,-293.69,0.00039725,2]
[310947919,1704828644067,-293.69,0.00039725,2]
[310947921,1704828644077,-293.69,0.00039725,2]
[310947924,1704828644086,-293.69,0.00039725,2]
[310947925,1704828644095,-293.69,0.00039725,2]
[310947926,1704828644105,-150.0,0.00039737,2]
[310947927,1704828644114,-150.0,0.00039759,2]
[310947928,1704828644127,-1500.0,0.0003978,2]
[310947929,1704828644137,-980.7311267,0.000398,4]
[310947930,1704828644148,-300.0,0.00039805,2]
[310947931,1704828644159,-155.2462413,0.00039846,7]
[310947932,1704828644169,-150.0,0.00039876,2]
[310947933,1704828644178,-150.0,0.00039879,2]
[310947934,1704828644187,-155.45,0.0003991,2]
[310947935,1704828644197,-150.0,0.00039923,2]
[310947936,1704828644206,-150.0,0.00039972,2]
[310947937,1704828644216,-100000.0,0.0004,3]
[310947938,1704828644225,-5000.0,0.0004,3]
[310947939,1704828644235,-1572.0180746,0.0004,4]
[310947940,1704828644244,-2060.81609234,0.0004,10]
[310947942,1704828644254,-1057.70156371,0.0004,10]
[310947943,1704828644263,-21458.2225566,0.0004,10]
[310947944,1704828644272,-117389.79205413,0.0004,2]
[310947945,1704828644281,-2000.0,0.0004,2]
[310947946,1704828644290,-9799.1100182,0.0004,2]
[310947947,1704828644300,-233673.57328261,0.0004,4]
[310947948,1704828644930,-403.69410205,0.00022592,2]
[310947949,1704828644939,-1000.0,0.000372,2]
[310947950,1704828644950,-5841.28809859,0.0004,4]
[310947951,1704828644962,-497.38921994,0.0004,4]
[310947952,1704828644974,-2158.17968412,0.0004,4]
[310947953,1704828644985,-296.96831225,0.0004,4]
[310947954,1704828644996,-938.06556108,0.0004,4]
[310947955,1704828645007,-297.3622043,0.0004,4]
[310947956,1704828645068,-5933.2660194,0.0004,4]
[310947957,1704828645079,-18696.0258,0.0004,4]
[310947958,1704828645090,-819.04,0.0004,4]
[310947959,1704828645101,-2030.05024149,0.0004,4]
[310947960,1704828645344,-1043.80845818,0.00022592,2]
[310947961,1704828645353,-143254.99567818,0.0004,4]
[310947962,1704828645365,-56008.1713987,0.0004,4]
[310947963,1704828645380,-10731.25,0.0004,4]
[310947964,1704828645394,-51970.81943308,0.0004,4]
[310947965,1704828645407,-424.54446131,0.0004,4]
[310947966,1704828645418,-453.8784,0.0004,4]
[310947967,1704828645429,-1783.23346018,0.0004,4]
[310947968,1704828645440,-2514.8464571,0.0004,4]
[310947969,1704828645585,-11717.39326322,0.0004,4]
[310947970,1704828645595,-9012.78812622,0.0004,4]
[310947971,1704828645615,-4062.96450831,0.0004,4]
[310947972,1704828645627,-1395.21065674,0.0004,4]
[310948050,1704828646653,-536.28001313,0.00022592,2]
[310948067,1704828646838,-4160.02387919,0.00022592,2]
[310948069,1704828646848,-293.69,0.00039725,2]
[310948071,1704828646857,-14423.07675608,0.0004,4]
[310948073,1704828646869,-10133.3742,0.0004,4]
[310948076,1704828646881,-26843.49784,0.0004,4]
[310948078,1704828646892,-1632.92621345,0.0004,4]
[310948082,1704828646928,-6651.12742283,0.0004,4]
[310948084,1704828646938,-28747.43583033,0.0004,2]
[310948087,1704828646958,-2852.45148376,0.0004,2]
[310948100,1704828647126,-329.86,0.00025089,2]
[310948101,1704828647135,-9149.40306356,0.0004,2]
[310948102,1704828647147,-3950.46662316,0.0004,2]
[310948103,1704828647202,-2723.63901046,0.0004,2]
[310948104,1704828647214,-742.79,0.0004,2]
[310948105,1704828647236,-341.82,0.0004,2]
[310948106,1704828648222,-386.38055922,0.00022591,2]
[310948107,1704828648231,-329.86,0.00027353,2]
[310948108,1704828648240,-329.86,0.00029617,2]
[310948109,1704828648249,-329.86,0.00031881,2]
[310948110,1704828648258,-329.86,0.00034144,2]
[310948111,1704828648267,-329.86,0.00036408,2]
[310948112,1704828648276,-329.86,0.00038672,2]
[310948113,1704828648285,-2079.14128637,0.0004,2]
[310948114,1704828648297,-5755.03078564,0.0004,2]
[310948115,1704828648306,-166.50183678,0.0004,12]
[310948116,1704828648316,-1000.0,0.0004,120]
[310948117,1704828648325,-52631.50316441,0.0004,2]
[310948118,1704828648337,-13625.47044416,0.0004,2]
[310948119,1704828648348,-1300.12885984,0.0004,2]
[310948120,1704828650020,-205.0,0.00034689,5]
[310948121,1704828650030,-2530.49702772,0.0004,2]
[310948122,1704828650044,-683.84348786,0.0004,2]
[310948123,1704828650061,-409.248,0.0004,2]
[310948124,1704828650073,-1331.69832524,0.0004,2]
[310948125,1704828650086,-669.22834236,0.0004,2]
[310948126,1704828650098,-462.05930455,0.0004,2]
[310948127,1704828650110,-126356.32304386,0.0004,2]
[310948128,1704828650120,-6024.0,0.0004,2]
[310948129,1704828650132,-276.0,0.0004,14]
[310948130,1704828650142,-150.0,0.00040019,2]
[310948131,1704828650152,-150.0,0.0004004,2]
[310948132,1704828650161,-1000.0,0.00040055,10]
[310948133,1704828650171,-1000.0,0.00040055,10]
[310948134,1704828650181,-1000.0,0.00040055,10]
[310948135,1704828650191,-1000.0,0.00040055,10]
[310948136,1704828650201,-1000.0,0.00040055,10]
[310948137,1704828650212,-1000.0,0.00040055,10]
[310948138,1704828650222,-1000.0,0.00040055,10]
[310948139,1704828650233,-430.56361497,0.00040061,13]
[310948140,1704828650243,-157.63771416,0.00040086,7]
[310948141,1704828650253,-150.0,0.00040099,2]
[310948142,1704828650263,-184.90562178,0.000401,2]
[310948143,1704828650273,-150.0,0.00040191,2]
[310948144,1704828650282,-150.0,0.00040246,2]
[310948145,1704828650292,-150.0,0.0004025,2]
[310948146,1704828650302,-5000.0,0.0004028,2]
[310948147,1704828650312,-1500.0,0.00040284,2]
[310948148,1704828650321,-150.0,0.00040318,2]
[310948149,1704828650331,-150.0,0.00040319,2]
[310948150,1704828650341,-150.0,0.00040319,2]
[310948151,1704828650362,-150.0,0.00040338,2]
[310948152,1704828650374,-150.0,0.00040369,2]
[310948153,1704828650386,-150.0,0.00040376,2]
[310948154,1704828650397,-150.0,0.00040402,2]
[310948155,1704828650408,-150.0,0.00040414,2]
[310948156,1704828650419,-150.0,0.00040425,2]
[310948157,1704828650429,-150.0,0.00040442,2]
[310948158,1704828650440,-264.84299774,0.00040457,8]
[310948159,1704828650450,-150.0,0.00040493,2]
[310948160,1704828650460,-150.0,0.00040494,2]
[310948161,1704828650471,-155.0,0.000405,4]
[310948162,1704828650482,-40680.3,0.000405,2]
[310948163,1704828650493,-150.0,0.00040518,2]
[310948164,1704828650503,-3000.0,0.00040528,2]
[310948165,1704828650514,-150.0,0.00040534,2]
[310948166,1704828650524,-192.30351148,0.0004054,2]
[310948167,1704828650535,-150.0,0.00040546,2]
[310948168,1704828650546,-293.69,0.00040547,2]
[310948169,1704828650557,-293.69,0.00040547,2]
[310948170,1704828650567,-293.69,0.00040547,2]
[310948171,1704828650578,-293.69,0.00040547,2]
[310948172,1704828650589,-246.84,0.00040547,2]
[310948173,1704828650599,-293.55,0.00040547,2]
[310948174,1704828650609,-150.0,0.00040551,2]
[310948175,1704828650620,-150.0,0.00040568,2]
[310948176,1704828650631,-150.0,0.00040571,2]
[310948177,1704828650642,-150.0,0.00040578,2]
[310948178,1704828650654,-150.0,0.00040587,2]
[310948179,1704828650665,-150.0,0.00040593,2]
[310948180,1704828650676,-150.0,0.00040596,2]
[310948181,1704828650687,-150.0,0.00040598,2]
[310948182,1704828650698,-150.0,0.00040599,2]
[310948183,1704828650709,-150.0,0.00040603,2]
[310948184,1704828650720,-150.0,0.00040608,2]
[310948185,1704828650731,-150.0,0.00040627,2]
[310948186,1704828650742,-150.0,0.00040631,2]
[310948187,1704828650752,-150.0,0.00040631,2]
[310948188,1704828650763,-150.0,0.00040635,2]
[310948189,1704828650773,-150.0,0.00040638,2]
[310948190,1704828650789,-150.0,0.00040647,2]
[310948191,1704828650800,-150.0,0.00040672,2]
[310948192,1704828650811,-150.0,0.00040682,2]
[310948193,1704828650823,-150.0,0.00040685,2]
[310948194,1704828650835,-150.0,0.00040691,2]
[310948195,1704828650846,-150.0,0.00040693,2]
[310948196,1704828650857,-150.0,0.00040699,2]
[310948197,1704828650868,-150.0,0.00040701,2]
[310948198,1704828650879,-150.0,0.00040712,2]
[310948199,1704828650890,-150.0,0.00040715,2]
[310948200,1704828650901,-150.0,0.00040716,2]
[310948201,1704828650914,-150.0,0.00040726,2]
[310948202,1704828650925,-150.0,0.00040726,2]
[310948203,1704828650936,-150.0,0.00040746,2]
[310948204,1704828650946,-150.0,0.00040747,2]
[310948205,1704828650957,-150.0,0.00040773,2]
[310948206,1704828650968,-150.0,0.00040777,2]
[310948207,1704828650979,-150.0,0.00040783,2]
[310948208,1704828650989,-150.0,0.00040786,2]
[310948209,1704828651000,-150.0,0.00040792,2]
[310948210,1704828651013,-102835.06060573,0.000408,30]
[310948211,1704828651024,-150.0,0.00040804,2]
[310948212,1704828651035,-150.0,0.00040809,2]
[310948213,1704828651050,-150.0,0.00040813,2]
[310948214,1704828651065,-150.0,0.00040814,2]
[310948215,1704828651077,-150.0,0.00040815,2]
[310948216,1704828651088,-500.0,0.00040821,10]
[310948217,1704828651098,-150.0,0.00040838,2]
[310948218,1704828651110,-150.0,0.00040848,2]
[310948219,1704828651121,-150.0,0.00040848,2]
[310948220,1704828651132,-150.0,0.00040853,2]
[310948221,1704828651144,-360.0,0.00040854,31]
[310948222,1704828651158,-150.0,0.00040862,2]
[310948223,1704828651169,-150.0,0.00040863,2]
[310948224,1704828651181,-166.59790216,0.00040866,7]
[310948225,1704828651192,-150.0,0.00040872,2]
[310948226,1704828651203,-150.0,0.00040874,2]
[310948227,1704828651214,-150.0,0.00040876,2]
[310948228,1704828651225,-150.0,0.0004091,2]
[310948229,1704828651236,-150.0,0.0004092,2]
[310948230,1704828651246,-150.0,0.00040922,2]
[310948231,1704828651257,-150.0,0.00040936,2]
[310948232,1704828651268,-329.86,0.00040936,2]
[310948233,1704828651279,-150.0,0.00040941,2]
[310948234,1704828651289,-1500.0,0.00040946,2]
[310948235,1704828651300,-662.81488819,0.00040948,5]
[310948236,1704828651311,-150.0,0.00040971,2]
[310948237,1704828651321,-150.0,0.00040971,2]
[310948238,1704828651332,-150.0,0.00040973,2]
[310948239,1704828651342,-150.0,0.00040979,2]
[310948240,1704828651353,-150.0,0.00040987,2]
[310948241,1704828651364,-151.0,0.0004099,7]
[310948242,1704828651374,-151.470498,0.0004099,7]
[310948243,1704828651385,-152.34858058,0.00040995,10]
[310948244,1704828651396,-72299.09628304,0.00040999,2]
[310948245,1704828702098,150.0,0.00022496,2]
[310948246,1704828702121,150.0,0.00022496,2]
[310948249,1704828755274,150.0,0.00022496,2]
[310948250,1704828755296,150.0,0.00022496,2]
[310948251,1704828755318,150.0,0.00022496,2]
[310948252,1704828755340,150.0,0.00022496,2]
[310948253,1704828755360,92.69300702,0.00022496,2]
[310948254,1704828773292,103.64843822,0.00022496,2]
[310948255,1704828773316,257.24461844,0.00022496,2]
[310948256,1704828791289,360.89305666,0.00022496,2]
[310948257,1704828807278,360.89305666,0.00022496,2]
[310948260,1704828825339,360.89305666,0.00022496,2]
[310948267,1704828830814,-2000.0,0.00022708,2]
[310948268,1704828832843,-2000.0,0.00022708,2]
[310948269,1704828833166,-1092.16763667,0.00022708,2]
[310948279,1704828846704,360.89305666,0.00022496,2]
[310948284,1704828861336,360.89305666,0.00022708,2]
[310948292,1704828883289,186.04625001,0.00022708,2]
[310948293,1704828883310,174.84680665,0.00022708,2]
[310948299,1704828903301,360.89305666,0.00022708,2]
[310948302,1704828908705,-1464.26013669,0.0002273,2]
[310948312,1704828925601,-360.89305666,0.00022708,2]
[310948313,1704828925623,-1639.10694334,0.0002273,2]
[310948315,1704828926220,-2000.0,0.0002273,2]
[310948316,1704828926737,-2000.0,0.0002273,2]
[310948318,1704828927305,-2000.0,0.0002273,2]
[310948319,1704828927923,-2000.0,0.0002273,2]
[310948321,1704828928411,-2000.0,0.0002273,2]
[310948430,1704829306791,1333.19880575,0.000225,2]
[310948474,1704829832814,-386.38055922,0.00022546,2]
[310948475,1704829832823,-45.08431563,0.00022546,2]
[310948476,1704829832835,-600.1261207,0.00022546,2]
[310948477,1704829832847,-397.1706611,0.00022546,2]
[310948478,1704829832856,-182.4267889,0.00022547,2]
[310948479,1704829832868,-221.26731315,0.00022547,2]
[310948480,1704829832878,-4696.30389232,0.00022548,2]
[310948481,1704829832887,-1043.80845818,0.00022549,2]
[310948482,1704829832896,-400.0,0.00022549,2]
[310948483,1704829832905,-1134.7649775,0.0002255,2]
[310948484,1704829832915,-202.36211742,0.0002255,2]
[310948485,1704829832925,-24307.71385205,0.00022553,2]
[310948486,1704829832934,-42934.805529,0.00022553,2]
[310948487,1704829832944,-205.54450642,0.00022562,2]
[310948488,1704829832953,-242.92182878,0.00022563,2]
[310948489,1704829832963,-499.99,0.00022567,2]
[310948490,1704829832972,-215.42752515,0.00022708,2]
[310948491,1704829832981,-568.23537423,0.00023,2]
[310948492,1704829832990,-311.64,0.00023,2]
[310948493,1704829832999,-298.44,0.00023,2]
[310948494,1704829833009,-150.0,0.00023,2]
[310948495,1704829833020,-197.91,0.00024985,2]
[310948496,1704829833031,-1581.25327792,0.00025,2]
[310948497,1704829833041,-482.91054368,0.00025,2]
[310948498,1704829833051,-250.0,0.00026379,2]
[310948499,1704829833061,-23900.0,0.00026387,2]
[310948500,1704829833072,-171.19,0.00026395,2]
[310948501,1704829833081,-525.74,0.00026451,2]
[310948502,1704829833096,-150.0,0.00026536,2]
[310948503,1704829833105,-193.02,0.00026846,2]
[310948504,1704829833114,-154.44,0.00026856,2]
[310948505,1704829833124,-150.78,0.00026866,2]
[310948506,1704829833133,-404.62,0.00026922,2]
[310948507,1704829833142,-150.78,0.0002694,2]
[310948508,1704829833151,-150.78,0.00027014,2]
[310948509,1704829833161,-150.78,0.00027087,2]
[310948510,1704829833170,-150.78,0.00027161,2]
[310948511,1704829833179,-162.72,0.00027197,2]
[310948513,1704829833188,-150.0,0.00027197,2]
[310948515,1704829833197,-2000.0,0.00027197,2]
[310948517,1704829833206,-205.22,0.00027197,2]
[310948520,1704829833219,-150.78,0.00027235,2]
[310948522,1704829833228,-197.91,0.00027248,2]
[310948524,1704829833237,-150.78,0.00027308,2]
[310948526,1704829833246,-2990.7318,0.00027341,2]
[310948528,1704829833255,-19463.8134,0.00027341,2]
[310948530,1704829833264,-150.78,0.00027382,2]
[310948532,1704829833273,-374.06,0.00027397,2]
[310948533,1704829833282,-250.0,0.00027397,2]
[310948535,1704829833291,-7415.577,0.00027441,2]
[310948536,1704829833301,-150.78,0.00027456,2]
[310948537,1704829833309,-150.78,0.00027529,2]
[310948538,1704829833318,-162.72,0.00027585,2]
[310948539,1704829833327,-150.78,0.00027603,2]
[310948540,1704829833336,-150.78,0.00027677,2]
[310948541,1704829833345,-150.78,0.0002775,2]
[310948542,1704829833354,-6138.0,0.00027791,2]
[310948543,1704829833363,-150.78,0.00027824,2]
[310948544,1704829833372,-195.44,0.00027861,2]
[310948545,1704829833381,-150.78,0.00027898,2]
[310948546,1704829833390,-150.78,0.00027971,2]
[310948547,1704829833399,-162.72,0.00027974,2]
[310948548,1704829833408,-150.78,0.00028045,2]
[310948549,1704829833417,-150.78,0.00028119,2]
[310948551,1704829833426,-150.78,0.00028192,2]
[310948552,1704829833436,-150.78,0.00028266,2]
[310948554,1704829833445,-162.72,0.00028362,2]
[310948555,1704829833455,-154.44,0.00028378,2]
[310948556,1704829833464,-162.72,0.00028751,2]
[310948557,1704829833475,-1040.00347398,0.00029,2]
[310948558,1704829833484,-162.72,0.00029139,2]
[310948559,1704829833493,-162.27,0.00029225,2]
[310948560,1704829833502,-197.91,0.00029512,2]
[310948561,1704829833512,-162.72,0.00029528,2]
[310948562,1704829833521,-180.555,0.00029695,3]
[310948563,1704829833530,-43394.390645,0.00029795,2]
[310948564,1704829833543,-2887.94746135,0.00029795,2]
[310948565,1704829833564,-900.0,0.00029795,2]
[310948566,1704829833928,-600.0,0.00029795,2]
[310948567,1704829833940,-659.3325531,0.00029795,2]
[310948568,1704829833968,-24707.82542715,0.00029795,2]
[310948569,1704829836815,156.70994609,0.00022449,2]
[310948579,1704829837770,-248.3603035,0.00022545,2]
[310948580,1704829837780,-89373.9797134,0.00029795,2]
[310948581,1704829837790,-154.44,0.000299,2]
[310948582,1704829837800,-162.72,0.00029916,2]
[310948583,1704829837809,-18985.51868976,0.0003,4]
[310948584,1704829837819,-690.39236906,0.0003,2]
[310948585,1704829837829,-2733.58668761,0.0003,2]
[310948586,1704829837838,-967.63643308,0.0003,4]
[310948587,1704829837848,-155.0,0.0003,2]
[310948588,1704829837857,-13743.03778787,0.0003,2]
[310948589,1704829837867,-285.68297929,0.000301,4]
[310948590,1704829837877,-153.84,0.00030137,2]
[310948591,1704829837887,-25.19664468,0.00030137,2]
[310948592,1704829837899,-9974.80335532,0.00030137,2]
[310948593,1704829837909,-165.31,0.00030359,2]
[310948594,1704829837919,-205.22,0.00030596,2]
[310948595,1704829837929,-154.44,0.00031422,2]
[310948596,1704829837938,-165.05,0.00031644,2]
[310948597,1704829837947,-197.91,0.00031776,2]
[310948598,1704829837957,-1125.42,0.00032,2]
[310948599,1704829837966,-150.93,0.00032877,15]
[310948600,1704829837976,-154.44,0.00032944,2]
[310948602,1704829837985,-249.51,0.000335,2]
[310948604,1704829837995,-249.51,0.000335,2]
[310948606,1704829838005,-249.51,0.000335,2]
[310948608,1704829838015,-249.51,0.000335,2]
[310948610,1704829838025,-249.51,0.000335,2]
[310948612,1704829838034,-249.51,0.000335,2]
[310948615,1704829838044,-249.51,0.000335,2]
[310948618,1704829838053,-249.51,0.000335,2]
[310948620,1704829838062,-249.51,0.000335,2]
[310948623,1704829838072,-249.51,0.000335,2]
[310948625,1704829838082,-249.51,0.000335,2]
[310948627,1704829838091,-249.51,0.000335,2]
[310948630,1704829838101,-249.51,0.000335,2]
[310948632,1704829838111,-249.51,0.000335,2]
[310948634,1704829838121,-249.51,0.000335,2]
[310948635,1704829838132,-249.51,0.000335,2]
[310948637,1704829838141,-249.51,0.000335,2]
[310948640,1704829838151,-249.51,0.000335,2]
[310948642,1704829838161,-249.51,0.000335,2]
[310948643,1704829838170,-249.51,0.000335,2]
[310948645,1704829838180,-403.0,0.00033719,2]
[310948648,1704829838190,-844.311,0.00033719,2]
[310948650,1704829838200,-427.532,0.00033719,2]
[310948652,1704829838209,-1849.0,0.00033719,2]
[310948654,1704829838218,-332.868,0.00033719,2]
[310948656,1704829838227,-944.0,0.00033719,2]
[310948658,1704829838236,-1339.266,0.00033719,2]